bitfinex/quotes_ETHUSD_20251125
["timestamp","ask_amount","ask_price","bid_price","bid_amount"]
[1764060972215,0.405504,2882.1,2882.0,1.5919]
[1764060972538,0.405504,2882.1,2882.0,1.0]
[1764060972539,4.17389623,2882.1,2882.0,1.0]
[1764060973146,3.87519623,2882.1,2882.0,1.0]
[1764060973437,3.87519623,2882.1,2882.0,1.4969]
[1764060974014,3.87519623,2882.1,2882.0,1.9506]
[1764060974210,3.87519623,2882.1,2882.0,1.4979]
[1764060975445,3.87519623,2882.1,2882.0,1.9506]
[1764060975816,3.87519623,2882.1,2882.0,1.4979]
[1764060976744,3.90761692,2882.1,2882.0,1.001]
[1764060976946,3.90761692,2882.1,2882.0,1.4979]
[1764060977148,3.87519623,2882.1,2882.0,1.4979]
[1764060978361,4.20631692,2882.1,2882.0,1.001]
[1764060978523,4.93191103,2882.1,2882.0,1.001]
[1764060978837,5.41341103,2882.1,2882.0,1.001]
[1764060979034,4.93191103,2882.1,2882.0,1.001]
[1764060979619,18.93126417,2882.1,2882.0,0.451]
[1764060979812,21.16098042,2882.1,2882.0,0.451]
[1764060980116,21.16097976,2882.1,2882.0,0.451]
[1764060980316,0.405504,2881.8,2881.0,0.00539787]
[1764060980545,0.0048,2881.1,2881.0,0.00539787]
[1764060980718,0.410304,2881.1,2881.0,0.00539787]
[1764060981332,4.35430053,2881.1,2881.0,0.00539787]
[1764060981538,5.07989464,2881.1,2881.0,0.00539787]
[1764060983635,1.13589811,2881.1,2881.0,0.00539787]
[1764060983836,5.30489464,2881.1,2881.0,0.00539787]
[1764060984078,4.83179464,2881.1,2881.0,0.00539787]
[1764060984245,5.30409464,2881.1,2881.0,0.00539787]
[1764060984737,4.83099464,2881.1,2881.0,0.00539787]
[1764060985470,4.60599464,2881.1,2881.0,0.00539787]
[1764060985680,4.82699464,2881.1,2881.0,0.00539787]
[1764060985832,5.28319464,2881.1,2881.0,0.00539787]
[1764060986165,5.05819464,2881.1,2881.0,0.00539787]
[1764060987241,5.53119464,2881.1,2881.0,0.00539787]
[1764060988761,7.74739933,2881.1,2881.0,0.00539787]
[1764060989067,7.71497864,2881.1,2881.0,0.00539787]
[1764060989935,7.93997864,2881.1,2881.0,0.00539787]
[1764060990232,8.40267864,2881.1,2881.0,0.00539787]
[1764060990663,8.17767864,2881.1,2881.0,0.00539787]
[1764060990960,8.40267864,2881.1,2881.0,0.00539787]
[1764060992042,23.08700871,2881.1,2881.0,0.00539787]
[1764060992241,23.08700871,2881.1,2878.9,0.167923]
[1764060992242,3.644,2880.4,2878.9,0.167923]
[1764060992441,2.079,2880.5,2878.9,0.167923]
[1764060992442,0.721604,2879.0,2878.9,0.167923]
[1764060992637,0.631504,2879.0,2878.9,0.167923]
[1764060992869,0.405504,2879.0,2878.9,0.621723]
[1764060993232,0.586304,2879.1,2879.0,0.095]
[1764060993427,0.1808,2879.1,2879.0,0.9165]
[1764060993632,0.1808,2879.1,2879.0,1.0115]
[1764060993937,0.1808,2879.1,2879.0,0.9165]
[1764060994135,0.586304,2879.1,2879.0,0.4538]
[1764060994758,0.586304,2879.1,2879.0,0.9165]
[1764060995942,0.586304,2879.1,2879.0,0.4538]
[1764060996381,0.405504,2879.0,2878.9,0.167923]
[1764060996951,0.775704,2879.0,2878.9,0.167923]
[1764060997152,0.405504,2879.0,2878.9,0.167923]
[1764060997378,7.82723311,2879.0,2878.9,0.167923]
[1764060997881,11.30066138,2879.0,2878.9,0.167923]
[1764060998177,11.36168538,2879.0,2878.9,0.167923]
[1764060998378,8.75006438,2879.0,2878.9,0.167923]
[1764061000180,8.75006438,2879.0,2877.1,3.66790442]
[1764061000181,1.13109811,2878.8,2877.5,0.4627]
[1764061000375,0.405504,2878.6,2877.5,0.4627]
[1764061000679,0.405504,2878.6,2877.5,0.44384]
[1764061000879,0.878604,2878.6,2877.5,0.44384]
[1764061001067,0.878604,2878.6,2877.1,3.66797008]
[1764061001068,1.13109811,2878.4,2877.1,0.2873]
[1764061001270,2.570375,2878.5,2877.1,0.2873]
[1764061001271,0.405504,2878.2,2877.1,3.66801159]
[1764061001472,0.72559411,2878.8,2877.6,0.095]
[1764061001771,0.72559411,2878.9,2878.1,0.7411]
[1764061002150,0.72559411,2878.8,2878.1,0.6461]
[1764061002550,0.72559411,2878.8,2878.2,0.5577]
[1764061002750,0.72559411,2878.8,2878.7,0.4538]
[1764061003173,4.19907285,2879.0,2878.7,0.4538]
[1764061003370,4.42507285,2879.0,2878.7,0.4538]
[1764061003573,0.4627,2879.4,2878.7,0.4538]
[1764061003759,3.69906637,2879.3,2878.7,0.4538]
[1764061003960,3.47306637,2879.3,2878.7,0.9165]
[1764061004188,1.58935105,2880.6,2879.2,0.6461]
[1764061004388,3.246348,2880.4,2879.5,0.095]
[1764061004554,3.22231811,2880.3,2879.5,0.095]
[1764061004754,2.086397,2880.2,2879.5,0.095]
[1764061004973,2.500962,2880.3,2879.4,0.5577]
[1764061005561,3.22655611,2880.3,2879.4,0.5577]
[1764061005761,2.270387,2880.3,2879.4,0.5577]
[1764061006152,0.72559411,2880.0,2879.4,0.5577]
[1764061006575,0.405504,2879.9,2879.4,0.4627]
[1764061008392,0.72559411,2879.9,2879.4,0.4627]
[1764061008557,0.72559411,2880.2,2879.4,0.4627]
[1764061008997,0.72559411,2880.0,2879.4,0.4627]
[1764061009295,0.72559411,2880.2,2879.4,0.4627]
[1764061009503,0.72559411,2880.0,2879.4,0.5577]
[1764061009703,0.72559411,2880.0,2879.4,0.4627]
[1764061009908,0.72559411,2880.2,2879.6,0.095]
[1764061010063,0.226,2880.1,2879.6,0.095]
[1764061010375,0.405504,2879.8,2879.7,0.4574]
[1764061010576,4.16052201,2880.4,2880.0,0.494]
[1764061010784,4.16052201,2880.4,2879.6,0.095]
[1764061010785,2.062339,2880.9,2880.3,0.494]
[1764061010983,7.16827498,2880.9,2880.3,0.494]
[1764061011200,0.72559411,2880.8,2880.3,0.494]
[1764061011359,3.47077606,2881.2,2880.7,0.494]
[1764061011561,0.226,2881.1,2880.7,0.494]
[1764061011763,3.47077606,2881.2,2880.7,1.0464]
[1764061012109,6.94010686,2881.8,2881.1,0.6802]
[1764061012262,6.94010686,2881.8,2881.3,0.494]
[1764061012263,7.16610686,2881.8,2881.3,0.494]
[1764061012458,7.16610686,2881.8,2881.3,0.589]
[1764061012459,3.69605343,2881.8,2881.3,0.589]
[1764061012664,3.47183117,2882.0,2881.1,3.65709323]
[1764061012665,3.46994123,2881.9,2881.7,0.494]
[1764061012864,0.72559411,2881.8,2881.7,0.494]
[1764061013308,3.46994123,2881.9,2881.7,0.494]
[1764061013505,0.72559411,2881.8,2881.7,0.494]
[1764061013705,0.002,2882.0,2881.8,0.494]
[1764061013865,0.72559411,2881.9,2881.4,0.5524]
[1764061014265,3.47186383,2882.0,2881.5,0.095]
[1764061014504,6.94172766,2882.0,2881.5,0.095]
[1764061014708,0.72759411,2882.0,2881.6,0.4574]
[1764061015042,0.002,2882.0,2881.9,0.494]
[1764061015244,4.19740674,2882.0,2881.9,0.494]
[1764061015411,4.60291074,2882.0,2881.9,0.494]
[1764061015738,1.13309811,2882.0,2881.9,0.494]
[1764061016137,4.60291074,2882.0,2881.9,0.494]
[1764061016744,0.002,2882.0,2881.9,4.51633303]
[1764061016930,0.002,2882.0,2881.9,1.0464]
[1764061017638,0.002,2882.0,2881.9,4.51633303]
[1764061017849,0.002,2882.0,2881.9,0.464]
[1764061018017,0.002,2882.0,2881.9,0.9389]
[1764061018217,0.002,2882.0,2881.9,1.0339]
[1764061018618,0.002,2882.0,2881.9,4.50383303]
[1764061019015,0.002,2882.0,2881.9,1.0339]
[1764061019210,0.002,2882.0,2881.9,4.50383303]
[1764061019412,0.002,2882.0,2880.6,4.05227046]
[1764061019756,0.002,2882.0,2881.2,0.5699]
[1764061020158,0.405504,2881.8,2880.9,0.4749]
[1764061020339,0.405504,2881.6,2881.0,0.095]
[1764061020861,0.405504,2881.6,2880.7,0.226]
[1764061020862,0.405504,2881.6,2881.2,0.4749]
[1764061021142,0.405504,2881.6,2881.0,0.095]
[1764061021344,0.405504,2881.4,2880.8,0.7514]
[1764061021573,0.03242069,2881.3,2880.8,0.7514]
[1764061021853,0.405504,2881.9,2881.5,0.464]
[1764061022013,0.405504,2881.9,2881.3,0.095]
[1764061022014,0.03242069,2881.8,2881.3,0.095]
[1764061022209,0.405504,2881.7,2880.8,0.1815]
[1764061022548,0.405504,2881.5,2880.8,0.8824]
[1764061022739,0.405504,2881.5,2880.9,0.5699]
[1764061023441,0.405504,2881.5,2880.5,0.6564]
[1764061023630,0.405504,2881.5,2880.7,0.095]
[1764061024144,0.405504,2881.5,2880.8,0.095]
[1764061024641,0.405504,2881.5,2880.9,0.095]
[1764061024847,3.47043979,2881.5,2880.9,3.56610545]
[1764061025044,0.72559411,2881.7,2881.4,0.464]
[1764061025344,0.03242069,2881.6,2881.4,0.464]
[1764061025646,0.43792469,2881.6,2881.4,0.464]
[1764061025944,0.405504,2881.6,2881.4,0.464]
[1764061026132,0.405504,2881.6,2881.0,0.4749]
[1764061026446,0.405504,2881.6,2881.0,0.7009]
[1764061026624,0.405504,2881.6,2881.1,0.095]
[1764061027035,0.405504,2881.6,2881.1,4.04079282]
[1764061027230,3.87583022,2881.6,2881.1,0.5699]
[1764061027436,3.87583022,2881.6,2881.2,0.4749]
[1764061027854,0.405504,2881.7,2881.5,0.464]
[1764061028022,0.002,2882.0,2881.5,0.464]
[1764061028223,0.002,2882.0,2881.9,0.464]
[1764061028631,3.47181263,2882.0,2881.6,0.4749]
[1764061028924,3.47181263,2882.0,2881.4,3.79142015]
[1764061029447,3.47181263,2882.0,2881.4,4.26632015]
[1764061029448,0.03242069,2881.9,2881.4,4.26632015]
[1764061029641,0.407504,2882.0,2881.4,3.79142015]
[1764061029842,0.407504,2882.0,2881.5,0.5699]
[1764061030239,0.002,2882.0,2881.9,0.464]
[1764061031236,0.002,2882.0,2881.9,0.9389]
[1764061031429,0.002,2882.0,2881.6,0.225]
[1764061031430,0.715804,2882.0,2881.6,0.225]
[1764061031751,0.03242069,2881.9,2881.6,0.225]
[1764061032143,0.715804,2882.0,2881.4,0.32]
[1764061032144,0.406704,2882.0,2881.4,0.32]
[1764061032448,0.406704,2882.0,2881.4,0.7949]
[1764061032751,0.406704,2882.0,2881.9,0.464]
[1764061033150,0.715004,2882.0,2881.5,0.4749]
[1764061033455,7.65481472,2882.0,2881.5,0.5699]
[1764061033629,4.18490936,2882.0,2881.5,0.5699]
[1764061034155,7.65481472,2882.0,2881.5,0.5699]
[1764061034344,4.18490936,2882.0,2881.5,0.5699]
[1764061034716,7.65481472,2882.0,2881.5,0.5699]
[1764061034922,3.47005343,2881.8,2881.4,0.225]
[1764061035148,0.405504,2881.6,2881.4,0.225]
[1764061035348,0.405504,2881.6,2881.3,0.095]
[1764061035753,0.405504,2881.4,2881.2,0.095]
[1764061036122,2.492504,2881.2,2877.3,0.3476]
[1764061036323,2.492504,2881.2,2877.1,1.74135806]
[1764061036324,3.644,2878.3,2877.1,0.1815]
[1764061036523,0.72559411,2878.4,2877.1,0.1815]
[1764061036524,13.944434,2878.1,2877.1,0.6564]
[1764061036750,0.73044752,2878.0,2877.1,0.6564]
[1764061036950,0.73045204,2877.9,2877.3,0.095]
[1764061037149,0.73045204,2877.9,2877.1,0.1815]
[1764061037348,0.73045204,2877.9,2877.0,5.0]
[1764061037349,0.72559411,2877.7,2877.0,5.0]
[1764061037591,0.0043,2877.1,2877.0,5.0]
[1764061037782,3.05027411,2877.1,2877.0,5.0]
[1764061037955,4.27846997,2877.1,2877.0,5.0]
[1764061038167,3.54967411,2877.1,2877.0,5.0]
[1764061038480,12.62313225,2877.1,2877.0,5.0]
[1764061038680,5.98602425,2877.1,2877.0,5.0]
[1764061039085,13.10574633,2877.1,2877.0,5.0]
[1764061039302,12.87474633,2877.1,2877.0,5.0]
[1764061039600,11.34444333,2877.1,2877.0,5.0]
[1764061040094,9.30671033,2877.1,2877.0,5.0]
[1764061040296,5.283431,2876.8,2875.7,0.1815]
[1764061040498,5.283431,2876.8,2875.3,0.1916]
[1764061040499,5.312704,2876.6,2875.3,0.1916]
[1764061040796,0.72559411,2876.5,2875.7,0.095]
[1764061041178,1.22429411,2876.5,2875.4,0.4905]
[1764061041588,0.4987,2876.4,2875.3,0.1916]
[1764061041893,0.4987,2876.4,2875.1,0.4905]
[1764061041894,0.231,2876.3,2875.1,0.1916]
[1764061042067,0.72559411,2876.1,2875.1,0.1916]
[1764061042273,0.72559411,2876.0,2875.1,0.2866]
[1764061042482,7.321334,2876.1,2875.1,0.2866]
[1764061042483,0.231,2875.9,2875.1,0.2866]
[1764061042674,0.4193,2875.9,2875.1,0.2866]
[1764061042873,1.22429411,2876.5,2875.1,0.9131]
[1764061043172,3.4766888,2876.3,2875.5,0.095]
[1764061043384,0.72559411,2876.2,2875.5,0.095]
[1764061043686,3.4765942,2876.4,2875.6,0.4905]
[1764061043896,0.231,2876.4,2875.7,0.095]
[1764061044493,0.95659411,2876.5,2875.7,0.5855]
[1764061045193,3.47584289,2877.0,2876.0,0.095]
[1764061045506,3.014402,2876.9,2875.2,0.095]
[1764061045690,3.014402,2876.9,2875.3,0.4905]
[1764061045691,0.72559411,2876.7,2875.3,0.4905]
[1764061045865,0.72559411,2876.5,2875.5,0.095]
[1764061046068,0.405504,2876.3,2875.5,0.095]
[1764061047295,3.47680967,2876.2,2875.5,0.095]
[1764061047477,6.95361934,2876.2,2875.5,0.095]
[1764061047797,6.95361934,2876.2,2875.5,0.5855]
[1764061048461,0.405504,2876.1,2875.5,0.5855]
[1764061049188,3.88253301,2876.1,2875.6,0.095]
[1764061049502,0.9974,2876.7,2875.6,0.095]
[1764061049686,0.405504,2876.2,2875.4,0.096]
[1764061049888,0.636504,2876.2,2875.4,0.096]
[1764061050597,0.405504,2876.2,2875.4,0.096]
[1764061050800,0.231,2876.2,2875.4,0.096]
[1764061051006,0.231,2876.2,2875.4,0.5865]
[1764061051200,6.95386112,2876.1,2875.4,0.5865]
[1764061051371,3.47693056,2876.1,2875.4,0.5865]
[1764061051569,6.95386112,2876.1,2875.6,0.095]
[1764061051780,6.98628181,2876.1,2875.6,0.095]
[1764061051979,6.98628181,2876.1,2875.6,0.5855]
[1764061052630,6.98628181,2876.1,2875.5,0.095]
[1764061052842,0.03242069,2876.1,2876.0,0.4883]
[1764061053024,0.231,2876.5,2876.0,0.9788]
[1764061053196,3.47656793,2876.4,2876.1,0.1916]
[1764061053402,0.72559411,2876.7,2876.1,0.1916]
[1764061053403,3.47620537,2876.7,2876.1,0.7771]
[1764061053741,3.6640664,2877.1,2876.1,0.7771]
[1764061053742,7.1846976,2877.0,2876.1,0.7771]
[1764061053902,0.72559411,2876.9,2876.1,0.7771]
[1764061054300,0.72559411,2876.9,2876.2,0.4905]
[1764061054502,7.1846976,2877.0,2876.2,0.4905]
[1764061054834,7.1846976,2877.0,2875.6,0.231]
[1764061054835,0.424,2876.3,2874.9,0.1815]
[1764061055020,0.005,2876.2,2875.3,0.4905]
[1764061055332,6.95434472,2875.9,2875.3,0.4905]
[1764061055536,0.005,2876.2,2875.1,0.1916]
[1764061055537,3.47681235,2876.2,2875.4,0.5865]
[1764061055700,0.405504,2876.1,2875.4,0.5865]
[1764061055900,0.72559411,2876.4,2875.4,0.5865]
[1764061056202,0.405504,2876.2,2875.4,0.5865]
[1764061056603,0.4987,2876.8,2875.4,0.4915]
[1764061056799,0.7297,2876.7,2875.6,0.095]
[1764061057013,0.405504,2876.6,2875.6,0.095]
[1764061057213,0.405504,2876.2,2875.4,0.001]
[1764061057432,0.405504,2876.0,2875.4,0.001]
[1764061058736,0.72559411,2876.2,2875.4,0.001]
[1764061059038,0.405504,2876.1,2875.6,0.095]
[1764061059339,0.405504,2875.9,2875.6,0.095]
[1764061059540,0.405504,2875.9,2875.6,0.5855]
[1764061059723,0.405504,2876.0,2875.6,0.5855]
[1764061059924,0.405504,2876.0,2875.8,0.4883]
[1764061060150,3.88250202,2876.1,2875.8,0.4883]
[1764061060446,7.35950004,2876.1,2875.4,0.001]
[1764061060633,7.35950004,2876.1,2875.4,0.096]
[1764061061247,7.35950004,2876.1,2875.4,0.5865]
[1764061061939,3.88250202,2876.1,2875.4,4.0642656]
[1764061062127,7.35950004,2876.1,2875.4,4.0642656]
[1764061062327,0.405504,2875.9,2875.4,4.0642656]
[1764061062840,0.405504,2875.9,2875.5,0.4905]
[1764061063149,7.3593679,2876.1,2875.5,0.4905]
[1764061063351,0.405504,2875.9,2875.5,0.4905]
[1764061063522,0.405504,2875.7,2875.5,0.4905]
[1764061064049,0.405504,2875.7,2875.4,0.001]
[1764061064252,0.72578707,2875.6,2875.4,0.001]
[1764061064423,0.72578707,2875.5,2875.4,0.001]
[1764061064751,1.78529107,2875.5,2875.4,0.001]
[1764061064915,4.85054708,2875.5,2875.4,0.001]
[1764061065122,3.00888518,2875.5,2875.4,0.001]
[1764061065328,1.13109811,2875.4,2874.2,0.4905]
[1764061065554,1.31587052,2874.7,2874.6,0.095]
[1764061065858,1.13129107,2874.7,2874.6,1.0738]
[1764061066227,1.13129107,2874.7,2873.8,3.70966987]
[1764061066228,0.72559411,2874.6,2873.2,0.095]
[1764061066450,0.91607809,2873.9,2873.7,0.4905]
[1764061066639,0.73296753,2873.8,2873.7,0.4905]
[1764061066845,0.405504,2874.1,2873.7,0.4905]
[1764061067039,0.73290901,2874.0,2873.8,0.23]
[1764061067244,0.405504,2874.1,2874.0,0.5833]
[1764061067451,1.13857179,2874.1,2874.0,0.4883]
[1764061067663,1.13857179,2874.1,2874.0,0.9788]
[1764061067866,2.36000925,2874.1,2874.0,0.9788]
[1764061068041,1.13857179,2874.1,2874.0,0.4883]
[1764061068248,1.13857179,2874.1,2874.0,4.55327112]
[1764061068249,1.64881519,2874.1,2874.0,4.55327112]
[1764061068443,0.73306779,2874.1,2874.0,4.55327112]
[1764061068659,0.73306779,2874.1,2874.0,4.69027112]
[1764061068859,0.9157474,2874.6,2874.0,4.69027112]
[1764061069059,0.405504,2874.4,2874.0,0.4893]
[1764061069242,0.405504,2874.2,2874.0,0.5843]
[1764061069741,0.405504,2874.4,2874.1,0.4883]
[1764061069959,0.73237675,2874.3,2874.2,0.095]
[1764061070152,0.73237675,2874.3,2874.0,0.5008]
[1764061070388,0.7321459,2874.2,2874.1,0.23]
[1764061070738,0.7321459,2874.2,2874.1,1.3229]
[1764061070941,0.405504,2874.6,2874.3,0.095]
[1764061071142,0.73215831,2874.5,2874.3,0.8248]
[1764061071342,0.73215831,2874.4,2874.3,0.8248]
[1764061071575,0.73215831,2874.4,2874.3,0.325]
[1764061071741,0.405504,2874.8,2874.3,0.8231]
[1764061071941,0.405504,2874.6,2874.3,4.30218196]
[1764061072169,4.39406413,2875.0,2874.4,0.4998]
[1764061072170,0.9157474,2875.0,2874.4,0.4998]
[1764061072369,0.73189799,2874.9,2874.4,0.4998]
[1764061072547,0.9157474,2875.4,2875.1,0.4981]
[1764061072749,1.04963659,2875.3,2875.1,0.4981]
[1764061072944,0.73194171,2875.2,2875.1,0.4981]
[1764061073556,0.73194171,2875.2,2874.9,0.23]
[1764061073773,4.3934388,2875.5,2875.0,0.1]
[1764061073947,1.04961404,2875.4,2874.8,3.47850285]
[1764061074274,0.73192532,2875.3,2875.1,0.1]
[1764061074472,0.405504,2875.5,2875.1,0.1]
[1764061074776,0.405504,2875.3,2875.1,0.1]
[1764061075143,1.13109811,2875.6,2874.9,0.1]
[1764061075343,1.04976542,2875.5,2875.2,0.1]
[1764061075567,0.1883,2875.9,2875.5,0.1]
[1764061075770,1.04989444,2875.8,2875.5,0.1]
[1764061075957,0.73211941,2875.7,2875.5,3.5776044]
[1764061076162,1.64334151,2876.1,2875.5,3.5776044]
[1764061076480,0.6686,2875.6,2874.0,0.001]
[1764061076778,0.91485892,2875.1,2874.0,0.13579471]
[1764061077078,0.91485892,2875.1,2874.3,0.1]
[1764061077079,1.45548787,2875.0,2874.3,0.1]
[1764061077279,0.405504,2874.8,2874.6,0.1]
[1764061077773,0.405504,2875.1,2874.6,0.1]
[1764061077974,0.73193701,2875.0,2874.7,0.1]
[1764061078146,8.27591692,2875.4,2874.5,3.47876745]
[1764061078342,8.27591692,2875.4,2874.8,0.1]
[1764061078343,0.405504,2875.2,2874.8,0.1]
[1764061078571,6.955554,2875.4,2874.8,0.1]
[1764061078572,0.405504,2875.0,2874.8,0.1]
[1764061079341,0.405504,2875.3,2875.0,0.1]
[1764061079546,0.405504,2875.1,2875.0,0.1]
[1764061079948,0.405504,2875.3,2875.0,0.1]
[1764061080278,4.39222986,2875.8,2875.1,0.23]
[1764061080482,1.04986579,2875.7,2875.4,0.1]
[1764061080679,1.10955892,2875.9,2875.0,3.47826086]
[1764061080680,0.73211053,2875.6,2875.0,3.47826086]
[1764061080856,1.10955892,2875.9,2875.4,0.1]
[1764061081062,1.6945119,2876.1,2875.1,0.23]
[1764061081063,1.04987346,2875.8,2875.1,0.23]
[1764061081261,0.91685892,2876.1,2875.1,0.23]
[1764061081262,3.4770576,2876.0,2875.7,0.1]
[1764061081480,1.0500685,2875.9,2875.1,0.23]
[1764061081702,3.47894655,2876.1,2875.5,0.1]
[1764061081703,0.7322577,2875.8,2875.5,0.1]
[1764061081987,0.002,2876.1,2875.7,0.1]
[1764061082186,0.405504,2875.9,2875.7,0.1]
[1764061082352,0.405504,2875.9,2875.7,0.33]
[1764061082697,0.407504,2876.1,2875.7,0.33]
[1764061083001,0.405504,2875.9,2875.7,0.33]
[1764061083187,0.407504,2876.1,2875.7,0.33]
[1764061083363,0.405504,2875.9,2875.7,0.33]
[1764061083691,0.407504,2876.1,2875.7,0.1]
[1764061083902,0.407504,2876.1,2875.6,0.23]
[1764061083903,0.600204,2875.9,2875.6,0.23]
[1764061084262,0.405504,2875.9,2875.6,0.23]
[1764061084487,3.47900832,2876.1,2875.6,0.23]
[1764061084488,0.002,2876.1,2875.6,0.23]
[1764061084690,1.13818675,2876.0,2875.9,0.1]
[1764061084865,1.13818675,2876.0,2875.6,0.23]
[1764061085069,0.405504,2875.9,2875.7,0.1]
[1764061085283,0.407504,2876.1,2875.7,0.1]
[1764061085601,0.405504,2875.9,2875.7,0.1]
[1764061085801,0.407504,2876.1,2875.7,0.1]
[1764061086096,0.405504,2875.9,2875.7,0.1]
[1764061086286,0.002,2876.1,2875.8,0.23]
[1764061086491,0.002,2876.1,2875.0,3.80879281]
[1764061086492,0.73270802,2876.0,2875.9,0.23]
[1764061087202,0.002,2876.1,2875.9,0.23]
[1764061087499,0.407504,2876.1,2875.9,0.23]
[1764061087901,0.002,2876.1,2875.9,0.23]
[1764061088084,0.405504,2875.9,2875.8,0.23]
[1764061088408,1.065404,2875.9,2875.5,0.1]
[1764061088573,4.54259254,2875.9,2875.6,0.23]
[1764061088898,0.405504,2875.5,2874.5,0.1]
[1764061089107,1.05020109,2875.4,2874.8,0.1]
[1764061089271,1.1378447,2875.3,2874.8,0.1]
[1764061089471,0.405504,2875.4,2874.8,0.1]
[1764061089671,0.405504,2875.2,2874.3,0.23]
[1764061089904,0.405504,2875.2,2874.9,0.1]
[1764061090105,0.405504,2875.4,2875.1,0.1]
[1764061090335,1.13109811,2875.4,2875.1,0.1]
[1764061090712,3.88328587,2875.4,2875.1,0.1]
[1764061091112,0.405504,2875.4,2875.1,0.1]
[1764061091309,3.88330355,2875.4,2875.1,0.1]
[1764061091509,3.88329043,2875.4,2875.1,0.1]
[1764061091726,3.87376539,2875.4,2875.1,0.1]
[1764061092735,0.39597896,2875.4,2875.1,0.1]
[1764061093036,3.87376549,2875.4,2875.1,0.1]
[1764061093199,0.23,2875.8,2875.0,3.4781872]
[1764061093404,0.23,2875.8,2875.2,0.1]
[1764061093405,0.72559411,2875.6,2875.2,0.1]
[1764061093846,0.405504,2875.5,2875.2,0.1]
[1764061094131,0.878204,2875.5,2875.1,0.1]
[1764061094334,3.477777,2875.4,2875.1,0.1]
[1764061095427,4.35589194,2875.5,2875.1,0.1]
[1764061096132,0.405504,2875.3,2875.0,0.229]
[1764061096511,0.405504,2875.5,2875.1,0.1]
[1764061096731,1.2299148,2875.8,2875.1,0.1]
[1764061096931,1.19829411,2875.8,2875.1,0.1]
[1764061097151,0.405504,2875.7,2875.1,0.329]
[1764061097503,0.405504,2875.7,2875.4,0.1]
[1764061098408,0.405504,2875.7,2875.2,0.229]
[1764061098409,0.4711,2875.5,2875.2,0.229]
[1764061098813,0.405504,2875.5,2875.2,0.329]
[1764061099011,0.405504,2875.5,2874.4,0.1]
[1764061099012,0.405504,2875.2,2874.4,0.1]
[1764061099238,0.405504,2875.0,2874.4,0.1]
[1764061099411,0.405504,2875.0,2874.4,0.329]
[1764061099611,0.405504,2874.8,2874.4,0.329]
[1764061100036,0.405504,2874.8,2874.4,0.1]
[1764061100441,0.405504,2874.8,2874.4,0.329]
[1764061100745,3.8840517,2874.8,2874.4,0.329]
[1764061101044,3.88401235,2874.8,2874.0,0.001]
[1764061101249,0.405504,2874.6,2874.2,0.1]
[1764061101411,0.405504,2874.7,2874.4,0.1]
[1764061101948,0.890804,2874.7,2874.2,0.1]
[1764061102115,0.405504,2874.8,2874.1,0.229]
[1764061102313,0.405504,2874.8,2874.5,0.1]
[1764061102535,0.405504,2874.6,2874.3,0.1]
[1764061102950,0.405504,2874.8,2874.3,3.57905781]
[1764061103156,0.405504,2874.8,2874.6,0.1]
[1764061104264,0.9445,2874.7,2874.4,0.1]
[1764061104675,0.405504,2874.4,2874.0,0.001]
[1764061104969,0.405504,2874.4,2874.1,0.1]
[1764061105343,0.890804,2874.4,2874.1,0.1]
[1764061106655,4.36989705,2874.4,2874.1,0.1]
[1764061106861,0.4242,2874.9,2874.1,0.1]
[1764061107064,0.4853,2874.7,2874.1,0.1]
[1764061107273,3.47850285,2874.8,2874.4,0.1]
[1764061107274,6.98862639,2874.8,2874.4,0.1]
[1764061107473,0.4853,2874.7,2874.4,0.1]
[1764061108250,0.405504,2874.8,2874.4,0.1]
[1764061108847,3.88405662,2874.8,2874.4,0.1]
[1764061109076,3.8840294,2874.8,2874.7,0.1]
[1764061109577,3.47792439,2875.3,2874.2,3.70818025]
[1764061109578,0.4853,2875.2,2874.6,0.1]
[1764061110345,0.4853,2875.2,2874.0,0.001]
[1764061110545,0.46,2874.7,2874.5,0.1]
[1764061110783,0.46,2874.7,2874.4,0.1]
[1764061111647,0.1876,2874.8,2874.4,0.1]
[1764061111978,0.593104,2874.8,2874.6,0.1]
[1764061112151,0.231,2875.4,2874.6,0.1]
[1764061112353,7.4410959,2875.3,2874.3,3.47907529]
[1764061112581,0.405504,2875.1,2874.3,3.47907529]
[1764061112789,0.405504,2875.1,2874.8,0.1]
[1764061113381,7.36192902,2875.1,2874.8,0.1]
[1764061113687,3.88371651,2875.1,2874.8,0.1]
[1764061114593,3.88357158,2875.2,2874.8,0.1]
[1764061114788,4.36887158,2875.2,2874.8,0.1]
[1764061114990,3.88357158,2875.2,2874.8,0.1]
[1764061115463,4.36887158,2875.2,2874.8,0.1]
[1764061116366,3.88343306,2875.3,2874.8,0.1]
[1764061116565,7.36136212,2875.3,2874.8,0.1]
[1764061116799,7.36136212,2875.3,2874.1,3.47931869]
[1764061116800,0.405504,2875.1,2874.6,0.328]
[1764061117696,0.002,2875.4,2874.6,7.18548972]
[1764061117899,3.47979792,2875.4,2875.1,0.1]
[1764061118065,3.96509792,2875.4,2875.0,0.228]
[1764061118267,0.405504,2875.3,2874.9,0.1]
[1764061118484,0.405504,2875.3,2874.9,0.328]
[1764061118666,0.890804,2875.3,2874.9,0.328]
[1764061118979,0.890804,2875.3,2874.9,0.1]
[1764061119166,0.405504,2875.3,2874.9,0.1]
[1764061119386,0.405504,2875.3,2875.0,0.1]
[1764061119563,0.407504,2875.4,2875.2,0.1]